bitfinex/quotes_SOLUSD_20250204
["timestamp","ask_amount","ask_price","bid_price","bid_amount"]
[1738697582765,0.03,217.39,217.38,0.12549]
[1738697582964,0.03,217.39,217.38,5.10216]
[1738697583170,0.03,217.44,217.42,0.37647]
[1738697583388,0.03,217.44,217.43,18.00733659]
[1738697583685,0.03,217.44,217.43,18.25831659]
[1738697584006,0.03,217.6,217.51,0.12549]
[1738697584161,0.03,217.6,217.53,17.75635659]
[1738697584370,0.03,217.6,217.59,17.75635659]
[1738697585108,0.03,217.6,217.59,22.47754659]
[1738697585266,0.03,217.6,217.59,22.35205659]
[1738697585463,0.03,217.6,217.59,22.60303659]
[1738697586685,0.03,217.6,217.57,17.75635659]
[1738697586884,0.03,217.6,217.54,1.5697]
[1738697587076,17.78635659,217.6,217.51,17.75635659]
[1738697587282,17.75635659,217.58,217.49,17.75635659]
[1738697587484,17.75635659,217.58,217.51,17.75635659]
[1738697587885,17.75635659,217.58,217.52,20.0]
[1738697588410,17.75635659,217.58,217.49,22.35405659]
[1738697588908,17.75635659,217.58,217.49,17.75635659]
[1738697589074,17.78635659,217.6,217.53,17.75635659]
[1738697589274,0.03,217.6,217.54,0.25098]
[1738697589489,0.03,217.6,217.53,17.75635659]
[1738697589708,17.75635659,217.56,217.47,17.75635659]
[1738697589870,17.75635659,217.54,217.47,22.35455659]
[1738697590070,17.75635659,217.56,217.49,17.75635659]
[1738697590306,17.75635659,217.58,217.5,4.72319]
[1738697590474,17.78635659,217.6,217.53,17.75635659]
[1738697590678,0.03,217.6,217.59,17.88184659]
[1738697591097,0.03,217.6,217.59,18.00733659]
[1738697591988,0.03,217.6,217.59,18.25831659]
[1738697592181,0.03,217.6,217.59,22.85401659]
[1738697592381,0.03,217.6,217.59,22.60303659]
[1738697592804,0.03,217.6,217.59,17.75635659]
[1738697593682,0.03,217.6,217.59,20.0]
[1738697594317,0.03,217.6,217.59,20.12549]
[1738697594623,0.03,217.6,217.59,18.25831659]
[1738697594786,0.03,217.6,217.59,31.67016512]
[1738697594985,17.75635659,217.74,217.64,0.25098]
[1738697595204,54.22372054,217.75,217.66,18.13282659]
[1738697595601,54.22372054,217.75,217.66,17.88184659]
[1738697596085,54.22372054,217.75,217.66,18.00733659]
[1738697596288,17.75635659,217.76,217.66,18.00733659]
[1738697596487,17.75635659,217.76,217.66,22.60163659]
[1738697596803,17.75635659,217.74,217.66,17.75635659]
[1738697597106,22.34855659,217.76,217.66,17.75635659]
[1738697597305,22.34855659,217.76,217.66,22.35065659]
[1738697597507,22.34855659,217.76,217.66,22.60163659]
[1738697598028,17.75635659,217.74,217.66,17.75635659]
[1738697599186,4.5928,217.73,217.66,17.75635659]
[1738697599788,17.75635659,217.72,217.62,17.75635659]
[1738697600128,17.75635659,217.66,217.58,17.75635659]
[1738697600894,17.75635659,217.68,217.6,17.75635659]
[1738697601196,4.6241,217.67,217.6,17.75635659]
[1738697601394,0.03,217.67,217.62,17.75635659]
[1738697601600,0.03,217.67,217.6,17.75635659]
[1738697602299,0.03,217.67,217.62,17.75635659]
[1738697603112,0.03,217.67,217.64,17.75635659]
[1738697603684,0.03,217.67,217.66,17.75635659]
[1738697603917,0.03,217.67,217.62,17.75635659]
[1738697604798,0.03,217.67,217.66,17.75635659]
[1738697604998,0.03,217.67,217.66,18.25831659]
[1738697605304,0.03,217.67,217.66,56.02082171]
[1738697605504,23.89825659,217.82,217.71,0.12549]
[1738697605684,17.75635659,217.74,217.67,17.75635659]
[1738697605884,17.75635659,217.7,217.63,17.75635659]
[1738697606095,17.75635659,217.7,217.61,17.75635659]
[1738697606288,17.75635659,217.72,217.65,17.75635659]
[1738697606819,17.75635659,217.72,217.63,17.75635659]
[1738697607019,17.75635659,217.7,217.61,17.75635659]
[1738697607217,17.75635659,217.66,217.59,17.75635659]
[1738697607522,17.75635659,217.66,217.58,0.063]
[1738697607523,22.35075659,217.66,217.58,0.063]
[1738697608935,22.35025659,217.68,217.61,17.75635659]
[1738697609137,4.5939,217.68,217.61,17.75635659]
[1738697609344,6.5483,217.69,217.61,22.35165659]
[1738697609719,11.142,217.69,217.63,17.75635659]
[1738697609922,11.142,217.69,217.61,22.35165659]
[1738697610147,11.142,217.69,217.61,17.75635659]
[1738697610348,17.75635659,217.68,217.59,17.75635659]
[1738697610516,17.75635659,217.66,217.59,17.75635659]
[1738697610850,17.75635659,217.66,217.58,0.063]
[1738697611458,6.5483,217.69,217.63,17.75635659]
[1738697611747,6.3392,217.74,217.67,17.75635659]
[1738697612262,6.3392,217.74,217.69,17.75635659]
[1738697612554,6.3392,217.79,217.73,17.75635659]
[1738697613234,17.75635659,217.78,217.69,17.75635659]
[1738697613433,17.75635659,217.78,217.7,4.5934]
[1738697613834,17.75635659,217.78,217.71,0.12549]
[1738697614034,17.75635659,217.78,217.71,17.88184659]
[1738697614256,17.75635659,217.78,217.71,17.75635659]
[1738697614456,17.75635659,217.76,217.67,17.75635659]
[1738697614761,17.75635659,217.74,217.65,17.75635659]
[1738697615238,17.75635659,217.76,217.69,17.75635659]
[1738697615429,17.75635659,217.76,217.63,4.5949]
[1738697615430,10.9308,217.79,217.71,17.75635659]
[1738697616073,6.3392,217.79,217.73,17.75635659]
[1738697616966,6.3692,217.79,217.73,17.75635659]
[1738697617748,10.9608,217.79,217.73,17.75635659]
[1738697618079,17.75635659,217.78,217.71,17.75635659]
[1738697618375,17.75635659,217.75,217.67,17.81935659]
[1738697618676,17.75635659,217.73,217.67,0.063]
[1738697619881,4.593,217.72,217.67,0.063]
[1738697620184,17.75635659,217.75,217.67,17.81935659]
[1738697620347,24.12555659,217.79,217.71,17.75635659]
[1738697620685,17.75635659,217.75,217.67,17.81935659]
[1738697620980,4.5917,217.78,217.71,17.75635659]
[1738697621457,4.5917,217.78,217.73,17.75635659]
[1738697621659,6.3692,217.79,217.73,17.75635659]
[1738697621871,6.3692,217.79,217.75,17.75635659]
[1738697622050,0.03,217.79,217.77,17.75635659]
[1738697622251,0.03,217.79,217.73,17.75635659]
[1738697622455,0.03,217.79,217.75,17.75635659]
[1738697622872,4.6216,217.79,217.73,17.75635659]
[1738697623257,0.03,217.79,217.77,17.75635659]
[1738697624186,0.03,217.79,217.77,4.5919]
[1738697624562,0.03,217.79,217.75,22.34855659]
[1738697624758,0.03,217.79,217.73,17.75635659]
[1738697624974,17.78635659,217.79,217.71,17.75635659]
[1738697625172,0.03,217.79,217.74,0.12549]
[1738697625484,0.03,217.79,217.78,17.75635659]
[1738697625694,0.03,217.79,217.78,17.88184659]
[1738697625894,0.03,217.79,217.74,17.75635659]
[1738697626272,0.03,217.79,217.75,4.71789]
[1738697626689,0.03,217.79,217.77,0.12549]
[1738697627012,0.03,217.79,217.78,17.75635659]
[1738697627676,0.03,217.79,217.74,17.75635659]
[1738697627857,17.78635659,217.79,217.72,42.34935659]
[1738697628061,17.75635659,217.77,217.7,17.75635659]
[1738697628863,22.34845659,217.77,217.7,17.75635659]
[1738697629587,17.75635659,217.77,217.7,22.34975659]
[1738697629793,0.03,217.79,217.72,17.75635659]
[1738697630100,22.37795659,217.79,217.72,17.75635659]
[1738697630272,17.75635659,217.77,217.7,17.75635659]
[1738697630802,0.03,217.79,217.74,17.75635659]
[1738697631114,0.03,217.79,217.76,17.75635659]
[1738697632019,0.03,217.79,217.74,17.75635659]
[1738697633078,0.03,217.79,217.72,17.88184659]
[1738697633287,0.03,217.79,217.74,17.75635659]
[1738697633487,0.03,217.79,217.76,17.75635659]
[1738697634618,0.03,217.79,217.78,18.13282659]
[1738697635120,0.03,217.79,217.78,18.25831659]
[1738697635319,0.03,217.79,217.78,31.67016512]
[1738697636603,0.03,217.79,217.78,36.26186512]
[1738697636918,0.03,217.79,217.78,22.85001659]
[1738697637090,0.03,217.79,217.78,22.72452659]
[1738697637520,0.03,217.79,217.78,36.26186512]
[1738697638019,0.03,217.82,217.81,20.37647]
[1738697638228,0.03,217.86,217.85,0.50196]
[1738697638446,0.03,217.86,217.85,51.67016512]
[1738697639333,0.03,217.95,217.92,0.12549]
[1738697639537,0.03,217.95,217.93,17.88184659]
[1738697640341,0.03,217.95,217.93,22.47044659]
[1738697640550,0.03,217.95,217.93,17.88184659]
[1738697640726,0.03,217.95,217.93,22.72142659]
[1738697641920,0.03,217.95,217.94,13.78831853]
[1738697642120,0.03,217.95,217.94,14.91380853]
[1738697642437,0.0001,217.95,217.94,19.50220853]
[1738697642643,0.0001,217.95,217.94,5.09036]
[1738697642810,0.0001,217.95,217.94,0.12549]
[1738697643015,0.0001,217.95,217.91,17.75635659]
[1738697643218,0.0001,217.95,217.89,17.75635659]
[1738697643219,6.0831,217.94,217.89,17.75635659]
[1738697643452,23.83945659,217.94,217.87,17.75635659]
[1738697643756,23.83945659,217.94,217.85,17.75635659]
[1738697643919,17.75635659,217.92,217.83,17.75635659]
[1738697644342,4.589,217.91,217.83,17.75635659]
[1738697644744,17.75635659,217.92,217.85,17.75635659]
[1738697645051,22.34515659,217.92,217.85,17.75635659]
[1738697645230,22.34515659,217.92,217.83,17.88184659]
[1738697645433,22.34515659,217.92,217.83,17.75635659]
[1738697645748,17.75635659,217.9,217.83,17.75635659]
[1738697645973,17.75635659,217.88,217.81,17.75635659]
[1738697646178,18.61708989,217.88,217.79,17.75635659]
[1738697646352,17.75635659,217.86,217.77,17.75635659]
[1738697646748,6.0361,217.85,217.77,17.75635659]
[1738697647265,6.0361,217.85,217.78,0.12549]
[1738697647469,6.89692528,217.85,217.77,17.75635659]
[1738697647675,6.89692528,217.85,217.73,17.75635659]
[1738697647676,17.75635659,217.82,217.73,17.75635659]
[1738697647984,1.6604,217.84,217.8,17.75635659]
[1738697648152,6.0361,217.85,217.83,17.75635659]
[1738697648674,6.0361,217.85,217.79,17.75635659]
[1738697648857,17.75635659,217.81,217.73,17.75635659]
[1738697649175,17.75635659,217.79,217.71,17.75635659]
[1738697649474,17.75635659,217.77,217.69,17.88184659]
[1738697650059,2.39946833,217.8,217.67,20.063]
[1738697650060,17.75635659,217.75,217.67,17.81935659]
[1738697650244,17.75635659,217.73,217.67,0.063]
[1738697650446,17.75635659,217.71,217.67,0.063]
[1738697650961,17.75635659,217.69,217.67,0.063]
[1738697651578,0.86153617,217.68,217.67,0.063]
[1738697651944,6.4269,217.67,217.58,0.063]
[1738697652138,17.75635659,217.62,217.58,0.063]
[1738697652369,17.75635659,217.64,217.58,0.063]
[1738697652549,11.0211,217.67,217.59,17.75635659]
[1738697652980,6.4269,217.67,217.59,17.75635659]
[1738697653153,6.4269,217.67,217.61,17.75635659]
[1738697653770,22.35065659,217.66,217.58,0.063]
[1738697653995,17.75635659,217.62,217.58,0.063]
[1738697654192,22.35105659,217.64,217.58,0.063]
[1738697655800,17.75635659,217.6,217.58,0.063]
[1738697656298,22.35205659,217.6,217.58,0.063]
[1738697657003,0.86191086,217.59,217.58,0.063]
[1738697657197,14.27375939,217.59,217.58,0.063]
[1738697657504,20.0,217.55,217.45,17.81935659]
[1738697657696,17.75635659,217.51,217.45,0.063]
[1738697658185,22.35395659,217.51,217.45,0.063]
[1738697658576,22.35355659,217.53,217.45,17.81935659]
[1738697659171,23.98105659,217.55,217.46,0.37647]
[1738697659397,23.98105659,217.55,217.48,17.75635659]
[1738697659773,1.628,217.55,217.5,17.75635659]
[1738697659984,28.40745659,217.59,217.52,17.75635659]
[1738697659985,6.0552,217.59,217.52,17.75635659]
[1738697660471,6.0552,217.59,217.52,22.35355659]
[1738697660785,6.0552,217.59,217.54,17.75635659]
[1738697660973,10.651,217.59,217.54,17.75635659]
[1738697661368,10.651,217.59,217.52,17.75635659]
[1738697661570,17.75635659,217.57,217.5,17.75635659]
[1738697661790,17.75635659,217.55,217.46,17.75635659]
[1738697661985,17.75635659,217.53,217.46,17.75635659]
[1738697662201,17.75635659,217.53,217.45,0.43947]
[1738697662380,17.75635659,217.51,217.45,0.063]
[1738697662574,17.75635659,217.49,217.45,0.063]
[1738697662796,17.75635659,217.51,217.45,0.063]
[1738697663010,17.75635659,217.49,217.45,0.063]
[1738697663195,17.75635659,217.46,217.45,0.063]
[1738697663506,18.61883735,217.46,217.45,0.063]
[1738697663687,17.75635659,217.46,217.45,0.063]
[1738697664077,31.16820512,217.46,217.45,0.063]
[1738697664285,35.76670512,217.46,217.45,0.063]
[1738697665407,22.35485659,217.46,217.45,0.063]
[1738697665573,6.6596,217.47,217.45,0.063]
[1738697666583,28.99075659,217.54,217.46,17.75635659]
[1738697666783,17.75635659,217.52,217.46,17.75635659]
[1738697666980,0.8622133,217.51,217.45,0.063]
[1738697667181,17.75635659,217.5,217.45,0.063]
[1738697667496,17.75635659,217.48,217.45,0.063]
[1738697668111,17.75635659,217.5,217.45,0.063]
[1738697668486,23.2161588,217.52,217.45,0.063]
[1738697668694,25.2561584,217.54,217.46,17.75635659]
[1738697669720,29.8531584,217.54,217.46,17.75635659]
[1738697670097,24.39395659,217.54,217.46,22.35475659]
[1738697670423,6.6376,217.54,217.5,17.75635659]
[1738697670593,4.6258,217.59,217.52,17.75635659]
[1738697670792,0.03,217.59,217.52,17.75635659]
[1738697671400,0.03,217.59,217.54,17.75635659]
[1738697671600,4.6258,217.59,217.54,17.75635659]
[1738697671821,0.03,217.59,217.54,17.75635659]
[1738697672726,0.03,217.59,217.54,22.35305659]
[1738697673318,0.03,217.59,217.54,17.75635659]
[1738697673999,0.03,217.59,217.52,17.75635659]
[1738697675105,17.75635659,217.58,217.5,17.75635659]
[1738697675317,17.75635659,217.52,217.45,0.063]
[1738697676103,0.86223541,217.51,217.45,0.063]
[1738697676308,17.75635659,217.5,217.45,0.063]
[1738697676508,17.75635659,217.48,217.45,0.063]
[1738697677031,4.5983,217.47,217.45,0.063]
[1738697677435,17.75635659,217.48,217.45,0.063]
[1738697677635,22.35445659,217.48,217.45,0.063]
[1738697678309,22.35315659,217.54,217.46,17.75635659]
[1738697678525,17.75635659,217.56,217.48,17.75635659]
[1738697678731,17.75635659,217.56,217.49,17.75635659]
[1738697679115,4.6259,217.59,217.51,17.75635659]
[1738697679315,4.6259,217.59,217.53,17.75635659]
[1738697679646,4.6259,217.59,217.55,17.75635659]
[1738697679647,0.03,217.59,217.55,17.75635659]
[1738697680940,0.03,217.59,217.53,17.75635659]
[1738697681419,0.03,217.59,217.53,22.35335659]
[1738697681617,6.3518,217.71,217.61,0.12549]
[1738697681842,6.3518,217.71,217.58,1.0]
[1738697681843,6.3518,217.71,217.7,17.75635659]
[1738697682028,6.3518,217.71,217.68,17.75635659]
[1738697682209,6.3518,217.71,217.7,17.75635659]
[1738697682406,5.45359137,217.76,217.68,17.75635659]
[1738697682614,28.71539703,217.7,217.62,28.71539703]
[1738697682841,28.71539703,217.66,217.57,28.71539703]
[1738697683145,33.30979703,217.66,217.57,28.71539703]
[1738697684124,33.30979703,217.66,217.57,33.31149703]
[1738697684327,28.71539703,217.68,217.59,28.71539703]
[1738697684531,28.71539703,217.7,217.63,28.71539703]
[1738697684731,29.57705526,217.72,217.63,28.71539703]
[1738697685445,4.5933,217.71,217.63,28.71539703]
[1738697685648,33.30839703,217.72,217.65,28.71539703]
[1738697686030,28.71539703,217.68,217.61,28.71539703]
[1738697687346,4.5941,217.67,217.61,28.71539703]
[1738697688727,6.5742,217.65,217.57,28.71539703]
[1738697688925,29.57718813,217.64,217.55,28.71539703]
[1738697689120,4.5949,217.63,217.55,28.71539703]
[1738697689331,0.86188096,217.62,217.55,28.71539703]
[1738697690853,28.71539703,217.6,217.54,0.063]
[1738697691024,29.57736569,217.6,217.54,0.063]
[1738697692439,6.5742,217.65,217.58,28.71539703]
[1738697692642,6.5742,217.65,217.62,28.71539703]
[1738697692832,6.5742,217.65,217.64,28.71539703]
[1738697693951,6.5742,217.65,217.59,28.71539703]
[1738697694850,11.1687,217.65,217.59,28.71539703]
[1738697695052,6.5742,217.65,217.59,28.71539703]
[1738697695230,4.5926,217.74,217.63,28.71539703]
[1738697695433,4.5926,217.74,217.61,0.37647]
[1738697695434,6.3198,217.75,217.72,28.71539703]
[1738697695757,6.3198,217.75,217.74,28.71539703]
[1738697696136,1.5591,217.78,217.74,28.71539703]
[1738697696461,6.1632,217.8,217.74,28.71539703]
[1738697697055,6.1632,217.8,217.76,28.71539703]
[1738697697261,0.03,217.81,217.78,28.71539703]
[1738697697554,0.03,217.81,217.8,28.71539703]
[1738697697724,0.03,217.81,217.78,28.71539703]
[1738697699064,0.03,217.81,217.8,28.71539703]
[1738697699559,0.03,217.81,217.8,29.09186703]
[1738697699761,0.03,217.81,217.8,28.71539703]
[1738697700131,0.03,217.81,217.8,29.09186703]
[1738697700331,0.03,217.81,217.8,42.62920556]
[1738697700533,0.03,217.81,217.8,71.34460259]
[1738697700962,0.0001,217.81,217.8,72.34460259]
[1738697701162,0.03,217.9,217.88,0.37647]
[1738697701335,0.03,217.9,217.89,29.09186703]
[1738697701536,0.03,217.9,217.89,28.84088703]
[1738697701730,0.03,217.9,217.89,28.71539703]
[1738697701931,0.03,217.9,217.87,28.71539703]
[1738697702174,0.03,217.9,217.89,28.71539703]
[1738697702362,0.03,217.9,217.89,28.84088703]
[1738697702557,0.03,217.9,217.89,28.71539703]
[1738697703367,0.03,217.9,217.89,28.84088703]
[1738697703555,0.03,217.9,217.89,29.21735703]
[1738697703864,0.03,217.9,217.89,28.96637703]
[1738697704439,0.03,217.9,217.89,29.21735703]
[1738697704751,0.0001,217.95,217.94,0.37647]
[1738697704956,0.0001,217.95,217.94,42.62920556]
[1738697705163,0.0001,217.95,217.94,29.21735703]
[1738697705466,0.0001,217.95,217.94,33.80575703]
[1738697706174,0.0001,217.95,217.94,49.82860556]
[1738697706341,0.063,217.99,217.98,13.91380853]
[1738697706541,0.063,217.99,217.98,42.62920556]
[1738697706850,0.0001,217.99,217.98,42.62920556]
[1738697707355,0.0001,217.99,217.98,47.21670556]
[1738697707861,0.0001,217.99,217.98,33.80485703]
[1738697708559,0.85993834,218.12,217.98,33.80485703]
[1738697708560,6.1326,218.24,218.13,1.0]
[1738697708867,34.84799703,218.3,218.16,71.34460259]
[1738697709061,6.1326,218.3,218.16,71.34460259]
[1738697709361,34.84799703,218.3,218.16,62.26547406]
[1738697709764,134.4211,218.29,218.16,62.26547406]
[1738697709958,134.4211,218.29,218.16,62.51645406]
[1738697710145,129.84,218.29,218.16,75.92830259]
[1738697710343,134.4212,218.29,218.16,75.92830259]
[1738697711044,0.0001,218.17,218.16,76.92830259]
[1738697711458,0.0001,218.17,218.16,62.51645406]
[1738697711650,0.0001,218.17,218.16,33.80105703]
[1738697711854,0.0001,218.17,218.16,28.71539703]
[1738697712159,0.0001,218.17,218.16,28.96637703]
[1738697712360,0.0001,218.17,218.16,71.34460259]
[1738697712564,129.84,218.29,218.27,28.71539703]
[1738697714586,129.84,218.29,218.28,0.50196]
[1738697714964,129.84,218.29,218.28,29.21735703]
[1738697715159,129.84,218.29,218.28,0.50196]
[1738697715383,129.84,218.29,218.28,29.21735703]
[1738697715579,129.84,218.29,218.28,0.50196]
[1738697715871,129.84,218.29,218.28,42.62920556]
[1738697716057,129.84,218.29,218.28,0.12549]
[1738697716376,129.84,218.29,218.27,28.71539703]
[1738697716689,129.84,218.29,218.28,0.25098]
[1738697717583,129.84,218.29,218.27,28.71539703]
[1738697717974,129.84,218.29,218.28,28.96637703]
[1738697718176,129.84,218.29,218.27,28.71539703]
[1738697718370,129.84,218.29,218.28,0.12549]
[1738697718690,129.84,218.29,218.27,28.71539703]
[1738697719887,129.84,218.29,218.28,0.12549]
[1738697720093,129.84,218.29,218.27,28.71539703]
[1738697721365,129.84,218.29,218.28,0.12549]
[1738697721786,129.84,218.29,218.27,28.71539703]
[1738697722193,134.421,218.29,218.27,28.71539703]
[1738697722496,134.421,218.29,218.25,28.71539703]
[1738697722890,129.84,218.29,218.25,28.71539703]
[1738697723275,134.421,218.29,218.25,28.71539703]
[1738697723576,174.58899703,218.29,218.21,28.71539703]
[1738697723769,145.8736,218.29,218.23,28.71539703]
[1738697723966,145.8736,218.29,218.21,28.71539703]
[1738697724488,145.8736,218.29,218.13,1.68209]
[1738697724489,28.71539703,218.27,218.13,4.70979]
[1738697724717,145.8736,218.29,218.23,17.57546561]
[1738697724718,134.421,218.29,218.23,17.57546561]
[1738697724871,134.421,218.29,218.25,17.57546561]
[1738697725583,134.451,218.29,218.23,17.57546561]
[1738697726080,0.85921862,218.28,218.21,17.57546561]
[1738697726271,17.57546561,218.27,218.19,17.57546561]
[1738697727000,17.57546561,218.25,218.17,17.63846561]
[1738697727503,4.5816,218.26,218.21,17.57546561]
[1738697727675,4.5816,218.26,218.19,17.57546561]
[1738697727869,4.5816,218.26,218.17,0.063]
[1738697727870,31.98731414,218.25,218.17,0.063]
[1738697728174,16.89511354,218.26,218.17,0.063]
[1738697728175,17.57546561,218.23,218.17,0.063]
[1738697728914,17.57546561,218.19,218.17,0.063]
[1738697729105,0.85972019,218.18,218.17,0.0001]
[1738697729285,19.16016561,218.19,218.17,0.0001]
[1738697730392,1.5847,218.19,218.17,0.0001]
[1738697730795,0.85962266,218.18,218.17,0.0001]
[1738697731005,0.25098,218.08,218.04,17.57546561]
[1738697731203,6.2259,218.06,218.01,17.57546561]
[1738697731711,6.2259,218.06,218.03,17.57546561]
[1738697731885,6.5815,218.12,218.03,17.57546561]
[1738697732090,6.5815,218.12,218.05,17.57546561]
[1738697732412,4.5833,218.18,218.11,17.57546561]
[1738697732587,4.5833,218.18,218.13,17.57546561]
[1738697732787,6.5815,218.2,218.15,17.57546561]
[1738697733613,11.1645,218.2,218.15,17.57546561]
[1738697734411,6.5815,218.2,218.15,17.57546561]
[1738697735187,22.15766561,218.24,218.15,22.15926561]
[1738697735406,22.15766561,218.24,218.15,17.57546561]
[1738697735913,22.15696561,218.27,218.18,17.57546561]
[1738697736410,17.57546561,218.25,218.18,17.57546561]
[1738697736798,17.57546561,218.25,218.16,17.57546561]
[1738697736992,4.5821,218.24,218.16,17.57546561]
[1738697737194,4.5821,218.24,218.07,0.063]
[1738697737419,4.5821,218.24,218.12,17.57546561]
[1738697737420,17.57546561,218.21,218.12,17.57546561]
[1738697737917,17.57546561,218.19,218.1,17.57546561]
[1738697738094,17.57546561,218.17,218.1,17.57546561]
[1738697739096,4.5837,218.16,218.1,17.57546561]
[1738697739814,17.57546561,218.13,218.07,0.063]
[1738697740014,17.57546561,218.11,218.07,0.063]
[1738697740511,17.57546561,218.09,218.07,0.063]
[1738697741400,5.44541593,218.08,218.07,0.063]
[1738697741809,18.85726446,218.08,218.07,0.0001]
[1738697742111,5.44541593,218.08,218.07,0.0001]
[1738697742704,4.5854,218.08,218.07,0.0001]
[1738697743314,5.44545733,218.08,218.07,0.0001]
[1738697743614,14.98194853,218.07,217.92,17.57546561]
[1738697743802,17.57546561,218.01,217.92,17.57546561]
[1738697744115,17.57546561,217.99,217.92,17.57546561]
[1738697744413,6.5869,218.0,217.92,17.57546561]
[1738697745123,17.57546561,217.97,217.9,17.57546561]
[1738697745410,17.57546561,217.97,217.88,17.57546561]
[1738697745613,17.57546561,217.97,217.9,17.57546561]
[1738697745815,22.16276561,217.99,217.9,17.57546561]
[1738697746289,6.5869,218.0,217.94,17.57546561]
[1738697746493,6.0657,218.06,217.98,17.57546561]
[1738697747308,6.0657,218.06,217.98,22.16286561]
[1738697747512,17.57546561,218.05,217.96,17.57546561]
[1738697748192,6.0657,218.06,217.98,17.57546561]
[1738697748910,6.0657,218.06,218.0,17.57546561]
[1738697749506,10.6516,218.06,217.98,22.16276561]
[1738697749802,17.57546561,218.05,217.96,17.57546561]
[1738697750206,17.57546561,218.05,217.96,37.57546561]
[1738697750514,6.0657,218.06,218.0,17.57546561]
[1738697750824,0.03,218.07,218.0,17.57546561]
[1738697751132,0.03,218.07,218.02,17.57546561]
[1738697751427,0.03,218.07,218.05,4.5861]
[1738697751644,0.03,218.07,218.04,17.57546561]
[1738697751797,0.03,218.07,217.98,4.6503]
[1738697751798,17.57546561,218.06,217.98,4.6503]
[1738697752121,0.03,218.07,218.01,17.57546561]
[1738697752320,0.03,218.07,218.06,17.57546561]
[1738697753200,0.03,218.07,218.06,18.07742561]
[1738697753398,17.57546561,218.2,218.08,0.12549]
[1738697753713,17.57546561,218.2,218.13,17.57546561]
[1738697753899,22.15836561,218.2,218.13,17.57546561]
[1738697754294,17.57546561,218.2,218.13,17.57546561]
[1738697754622,23.63606561,218.22,218.13,17.57546561]
[1738697754818,0.03,218.27,218.19,17.57546561]
[1738697755025,0.03,218.27,218.21,17.57546561]
[1738697755518,0.03,218.27,218.21,22.15796561]
[1738697756423,0.03,218.27,218.19,17.57546561]
[1738697757507,17.57546561,218.26,218.19,17.57546561]
[1738697757708,17.57546561,218.24,218.15,17.57546561]
[1738697758223,17.57546561,218.24,218.15,22.15936561]
[1738697758727,17.57546561,218.24,218.15,17.57546561]
[1738697759029,17.57546561,218.22,218.15,17.57546561]
[1738697759600,17.57546561,218.24,218.17,17.57546561]
[1738697760611,17.57546561,218.22,218.14,17.57546561]
[1738697760830,17.57546561,218.16,218.08,17.57546561]
[1738697761207,17.57546561,218.16,218.06,22.16116561]
[1738697761530,17.57546561,218.14,218.06,17.57546561]
[1738697761712,17.57546561,218.08,217.99,22.16276561]
[1738697762034,17.57546561,218.08,218.02,20.0]
[1738697762253,17.57546561,218.08,217.99,22.16276561]
[1738697762617,17.57546561,218.08,218.0,0.25098]
[1738697762821,22.16046561,218.1,218.01,22.16236561]
[1738697763007,0.03,218.08,218.01,22.16236561]
[1738697763331,0.03,218.08,217.99,22.16266561]
[1738697763332,17.57546561,218.06,217.99,22.16266561]
[1738697763514,17.57546561,218.06,217.98,0.063]
[1738697763723,0.03,218.08,217.98,0.063]
[1738697763724,17.57546561,218.04,217.98,0.063]
[1738697764033,0.03,218.08,218.01,17.57546561]
[1738697764833,0.03,218.08,218.03,17.57546561]
[1738697765015,0.03,218.08,218.01,22.16236561]
[1738697765730,0.03,218.08,218.02,0.25098]
[1738697766109,0.03,218.08,218.01,22.16236561]
[1738697766630,0.03,218.08,218.01,17.57546561]
[1738697766813,17.60546561,218.08,217.99,17.57546561]
[1738697767532,0.03,218.08,218.01,17.57546561]
[1738697767928,0.03,218.08,218.03,17.57546561]
[1738697768133,0.03,218.08,218.01,17.57546561]
[1738697768538,0.03,218.08,218.05,0.37647]
[1738697768737,0.03,218.08,218.07,38.07742561]
[1738697768940,0.03,218.08,218.07,42.66302561]
[1738697770054,0.03,218.08,218.07,42.16106561]
[1738697770246,0.03,218.08,218.07,42.53753561]
[1738697770421,0.03,218.08,218.07,42.66302561]